fUST/lending_fUST_20250128
["ID","MTS","AMOUNT","RATE_DAILY","PERIOD"]
[350645007,1738019434324,-500.0,0.00016438,2]
[350645008,1738019434333,-500.0,0.00016438,2]
[350645009,1738019434342,-500.0,0.00016438,2]
[350645010,1738019434351,-500.0,0.00016438,2]
[350645011,1738019434362,-500.0,0.00016438,2]
[350645012,1738019434372,-500.0,0.00016438,2]
[350645013,1738019434381,-500.0,0.00016438,2]
[350645014,1738019434391,-500.0,0.00016438,2]
[350645015,1738019434400,-12129.1217438,0.00016438,2]
[350645016,1738019434409,-500.0,0.00016575,2]
[350645017,1738019434419,-500.0,0.00016575,2]
[350645018,1738019434428,-628.23,0.00016575,2]
[350645019,1738019434437,-500.0,0.00016575,2]
[350645020,1738019434447,-500.0,0.00016575,2]
[350645021,1738019434456,-592.54,0.00016575,2]
[350645022,1738019434466,-500.0,0.00016575,2]
[350645023,1738019434475,-500.0,0.00016575,2]
[350645024,1738019434485,-500.0,0.00016575,2]
[350645025,1738019434495,-303.92481329,0.00016575,2]
[350645026,1738019434504,-521.35,0.00016575,2]
[350645027,1738019434514,-506.49245642,0.00016575,2]
[350645028,1738019434523,-506.88841486,0.00016575,2]
[350645029,1738019434533,-500.0,0.00016575,2]
[350645030,1738019434542,-511.77822675,0.00016575,2]
[350645031,1738019434551,-500.0,0.00016575,2]
[350645032,1738019434560,-500.0,0.00016575,2]
[350645033,1738019434570,-500.0,0.00016575,2]
[350645034,1738019434579,-500.0,0.00016575,2]
[350645035,1738019434588,-500.0,0.00016575,2]
[350645036,1738019434599,-500.0,0.00016575,2]
[350645037,1738019434609,-500.0,0.00016575,2]
[350645038,1738019434618,-500.0,0.00016575,2]
[350645039,1738019434627,-500.0,0.00016575,2]
[350645040,1738019434637,-500.0,0.00016575,2]
[350645041,1738019434646,-500.0,0.00016575,2]
[350645042,1738019434655,-500.0,0.00016575,2]
[350645043,1738019434665,-500.0,0.00016575,2]
[350645044,1738019434674,-163.21,0.00016575,2]
[350645045,1738019434683,-500.0,0.00016575,2]
[350645046,1738019434692,-198.74247687,0.00016575,2]
[350645047,1738019434701,-500.0,0.00016575,2]
[350645048,1738019434711,-631.86,0.00016575,2]
[350645049,1738019434720,-500.0,0.00016575,2]
[350645050,1738019434729,-500.0,0.00016575,2]
[350645051,1738019434739,-500.0,0.00016575,2]
[350645052,1738019434748,-500.0,0.00016575,2]
[350645053,1738019434757,-500.0,0.00016575,2]
[350645054,1738019434767,-500.0,0.00016575,2]
[350645055,1738019434776,-421.74,0.00016575,2]
[350645056,1738019434785,-162.75,0.00016575,2]
[350645057,1738019434795,-500.0,0.00016712,2]
[350645058,1738019434805,-500.0,0.00016712,2]
[350645059,1738019434814,-500.0,0.00016712,2]
[350645060,1738019434823,-500.0,0.00016712,2]
[350645061,1738019434832,-561.04,0.00016712,2]
[350645062,1738019434842,-500.0,0.00016712,2]
[350645063,1738019434851,-500.0,0.00016712,2]
[350645064,1738019434861,-500.0,0.00016712,2]
[350645065,1738019434870,-500.0,0.00016712,2]
[350645066,1738019434879,-500.0,0.00016712,2]
[350645067,1738019434888,-500.0,0.00016712,2]
[350645068,1738019434899,-500.0,0.00016712,2]
[350645069,1738019434910,-500.0,0.00016712,2]
[350645070,1738019434919,-504.47,0.00016712,2]
[350645071,1738019434929,-500.0,0.00016712,2]
[350645072,1738019434938,-500.0,0.00016712,2]
[350645073,1738019434948,-500.0,0.00016712,2]
[350645074,1738019434958,-500.0,0.00016849,2]
[350645075,1738019434967,-500.0,0.00016849,2]
[350645076,1738019434977,-329.22,0.00016849,2]
[350645077,1738019434986,-356.24,0.00016849,2]
[350645078,1738019434996,-500.0,0.00016849,2]
[350645079,1738019435005,-500.0,0.00016849,2]
[350645080,1738019435015,-463.64,0.00016849,2]
[350645081,1738019435024,-500.0,0.00016849,2]
[350645082,1738019435033,-500.0,0.00016849,2]
[350645083,1738019435042,-232.27329457,0.00016986,2]
[350645084,1738019435083,192.043071,0.00013699,2]
[350645085,1738019435096,-267.72670543,0.00016986,2]
[350645086,1738019435107,-396.9901379,0.00016986,2]
[350645087,1738019435119,-103.0098621,0.00016986,2]
[350645088,1738019435127,-500.0,0.00016986,2]
[350645089,1738019435137,-29.97480922,0.00016986,2]
[350645090,1738019436725,267.241106,0.0001515,2]
[350645100,1738019438485,-470.02519078,0.00016986,2]
[350645101,1738019438495,-536.74,0.00016986,2]
[350645102,1738019438505,-500.0,0.00016986,2]
[350645103,1738019438514,-500.0,0.00017123,2]
[350645104,1738019438523,-500.0,0.00017123,2]
[350645105,1738019438533,-500.0,0.00017123,2]
[350645106,1738019438542,-500.0,0.00017123,2]
[350645107,1738019438551,-500.0,0.0001726,2]
[350645108,1738019438561,-500.0,0.0001726,2]
[350645109,1738019438570,-500.0,0.0001726,2]
[350645110,1738019438579,-500.0,0.0001726,2]
[350645111,1738019438589,-500.0,0.00017397,2]
[350645112,1738019438599,-500.0,0.00017397,2]
[350645113,1738019438608,-500.0,0.00017397,2]
[350645114,1738019438619,-500.0,0.00017397,2]
[350645115,1738019438629,-500.0,0.00017534,2]
[350645116,1738019438638,-500.0,0.00017534,2]
[350645117,1738019438648,-500.0,0.00017534,2]
[350645118,1738019438657,-500.0,0.00017534,2]
[350645119,1738019438666,-192.38,0.00017671,2]
[350645120,1738019438677,-166.5,0.00017671,2]
[350645121,1738019438686,-500.0,0.00017671,2]
[350645122,1738019438695,-500.0,0.00017671,2]
[350645123,1738019438705,-500.0,0.00017808,2]
[350645124,1738019438714,-500.0,0.00017808,2]
[350645125,1738019438724,-182.90223211,0.00017916,2]
[350645126,1738019438734,-500.0,0.00017945,2]
[350645127,1738019438744,-500.0,0.00017945,2]
[350645128,1738019438753,-500.0,0.00018082,2]
[350645129,1738019438763,-418.76,0.00018082,2]
[350645130,1738019438772,-500.0,0.00018219,2]
[350645131,1738019438782,-500.0,0.00018356,2]
[350645132,1738019438791,-500.0,0.00018493,2]
[350645133,1738019438800,-500.0,0.0001863,2]
[350645134,1738019438810,-166.597,0.00018653,2]
[350645135,1738019438819,-500.0,0.00018767,2]
[350645136,1738019438829,-213.48418689,0.000189,2]
[350645137,1738019438839,-449.0,0.00018904,2]
[350645138,1738019438849,-500.0,0.00018919,2]
[350645139,1738019438858,-182.90223211,0.00019495,2]
[350645140,1738019438869,-6051.0,0.0002,2]
[350645141,1738019438879,-153.0,0.00020034,2]
[350645142,1738019438889,-153.0,0.00020034,2]
[350645143,1738019438902,-153.0,0.00020034,2]
[350645144,1738019438912,-153.0,0.00020034,2]
[350645145,1738019438922,-153.0,0.00020037,2]
[350645146,1738019438931,-153.0,0.00020037,2]
[350645147,1738019438941,-153.0,0.00020037,2]
[350645148,1738019438951,-499.0,0.00020547,2]
[350645149,1738019438961,-3000.0,0.00021,2]
[350645150,1738019438971,-3000.0,0.0002101,2]
[350645151,1738019438982,-3000.0,0.0002102,2]
[350645152,1738019438992,-229.68670828,0.00021029,2]
[350645153,1738019439001,-601.17238317,0.00021029,2]
[350645154,1738019439011,-3000.0,0.0002103,2]
[350645155,1738019439021,-3000.0,0.0002104,2]
[350645156,1738019439030,-3000.0,0.0002105,2]
[350645157,1738019439040,-3000.0,0.0002106,2]
[350645158,1738019439049,-3000.0,0.0002107,2]
[350645159,1738019439058,-182.90223211,0.00021073,2]
[350645160,1738019439067,-3000.0,0.0002108,2]
[350645161,1738019439077,-3000.0,0.0002109,2]
[350645162,1738019439086,-3000.0,0.000211,2]
[350645163,1738019439095,-3000.0,0.0002111,2]
[350645164,1738019439105,-3000.0,0.0002112,2]
[350645165,1738019439115,-3000.0,0.0002113,2]
[350645166,1738019439124,-3000.0,0.0002114,2]
[350645167,1738019439133,-3000.0,0.0002115,2]
[350645168,1738019439143,-3000.0,0.0002116,2]
[350645169,1738019439152,-18688.60852266,0.0002117,5]
[350645170,1738019439297,-22.0265812,0.0002117,5]
[350645171,1738019439309,-3922.66237617,0.0002117,5]
[350645172,1738019439318,-2793.6492193,0.0002117,2]
[350645275,1738019475328,267.241106,0.000171,14]
[350645276,1738019519755,4340.05113699,0.000171,14]
[350645292,1738020046929,1000.0,0.00022672,120]
[350645294,1738020127494,2616.77851112,0.000171,14]
[350645296,1738020357212,-235.81231099,0.0001584,2]
[350645298,1738020404000,162.811463,0.00013699,2]
[350645302,1738020442147,-4493.69686793,0.00015525,2]
[350645303,1738020442170,-62.00889712,0.00015682,2]
[350645304,1738020447175,-169.38503367,0.00015682,2]
[350645305,1738020447221,-52.0896386,0.0001584,2]
[350645306,1738020447265,-151.34410385,0.00016437,2]
[350645307,1738020453092,-148.65589615,0.00016437,2]
[350645308,1738020453114,-500.0,0.00016438,2]
[350645309,1738020453137,-500.0,0.00016438,2]
[350645310,1738020453159,-500.0,0.00016438,2]
[350645311,1738020453182,-499.82010869,0.00016438,2]
[350645312,1738020453204,-601.67893969,0.00016438,2]
[350645315,1738020496635,4609.84051822,0.000125,2]
[350645317,1738020505677,157.290553,0.00013973,2]
[350645369,1738020632850,-162.811462,0.00016274,2]
[350645370,1738020632859,-500.70382549,0.00016438,2]
[350645371,1738020632868,-500.0,0.00016438,2]
[350645372,1738020632878,-173.01528004,0.00016438,2]
[350645413,1738020638895,-326.98471996,0.00016438,2]
[350645414,1738020638904,-500.0,0.00016438,2]
[350645415,1738020638914,-500.89514753,0.00016438,2]
[350645416,1738020638923,-501.3228849,0.00016438,2]
[350645417,1738020638933,-500.0,0.00016438,2]
[350645418,1738020638942,-500.0,0.00016438,2]
[350645419,1738020638951,-500.0,0.00016438,2]
[350645420,1738020638960,-500.0,0.00016438,2]
[350645421,1738020638970,-499.30467281,0.00016438,2]
[350645422,1738020638979,-501.15380897,0.00016438,2]
[350645423,1738020638988,-500.0,0.00016438,2]
[350645424,1738020638997,-332.37922387,0.00016438,2]
[350645425,1738020639006,-501.66838482,0.00016438,2]
[350645426,1738020639015,-500.0,0.00016438,2]
[350645427,1738020639025,-500.0,0.00016438,2]
[350645428,1738020639034,-500.0,0.00016438,2]
[350645429,1738020639044,-500.0,0.00016438,2]
[350645430,1738020639053,-500.0,0.00016438,2]
[350645432,1738020639063,-500.0,0.00016438,2]
[350645434,1738020639072,-500.0,0.00016438,2]
[350645436,1738020639082,-500.0,0.00016438,2]
[350645438,1738020639090,-500.0,0.00016438,2]
[350645440,1738020639100,-500.0,0.00016438,2]
[350645441,1738020639109,-500.0,0.00016438,2]
[350645443,1738020639119,-500.0,0.00016438,2]
[350645445,1738020639128,-500.0,0.00016438,2]
[350645447,1738020639137,-500.0,0.00016438,2]
[350645449,1738020639146,-500.0,0.00016438,2]
[350645451,1738020639155,-500.0,0.00016438,2]
[350645452,1738020639165,-500.0,0.00016438,2]
[350645454,1738020639175,-500.0,0.00016438,2]
[350645455,1738020639184,-500.0,0.00016438,2]
[350645456,1738020639194,-500.0,0.00016438,2]
[350645457,1738020639203,-500.0,0.00016438,2]
[350645458,1738020639212,-500.0,0.00016438,2]
[350645459,1738020639222,-500.0,0.00016438,2]
[350645460,1738020639232,-500.0,0.00016438,2]
[350645461,1738020639241,-500.0,0.00016438,2]
[350645462,1738020639250,-500.0,0.00016438,2]
[350645463,1738020639259,-500.0,0.00016438,2]
[350645464,1738020639269,-500.0,0.00016438,2]
[350645465,1738020639278,-500.0,0.00016438,2]
[350645466,1738020639290,-500.0,0.00016438,2]
[350645467,1738020639300,-500.0,0.00016438,2]
[350645468,1738020639309,-500.0,0.00016438,2]
[350645469,1738020639319,-500.0,0.00016438,2]
[350645470,1738020639328,-500.0,0.00016438,2]
[350645471,1738020639339,-500.0,0.00016438,2]
[350645472,1738020639348,-500.0,0.00016438,2]
[350645473,1738020639357,-500.0,0.00016438,2]
[350645474,1738020639370,-500.0,0.00016438,2]
[350645475,1738020639379,-500.0,0.00016438,2]
[350645476,1738020639389,-500.0,0.00016438,2]
[350645477,1738020639398,-500.0,0.00016438,2]
[350645478,1738020639407,-500.0,0.00016438,2]
[350645479,1738020639417,-500.0,0.00016438,2]
[350645480,1738020639426,-500.0,0.00016438,2]
[350645481,1738020639435,-500.0,0.00016438,2]
[350645482,1738020639444,-500.0,0.00016438,2]
[350645483,1738020639453,-500.0,0.00016438,2]
[350645484,1738020639462,-500.0,0.00016438,2]
[350645485,1738020639473,-500.0,0.00016438,2]
[350645486,1738020639482,-500.0,0.00016438,2]
[350645487,1738020639491,-500.0,0.00016438,2]
[350645488,1738020639501,-500.0,0.00016438,2]
[350645489,1738020639510,-500.0,0.00016438,2]
[350645490,1738020639519,-507.52446146,0.00016438,2]
[350645491,1738020639528,-500.0,0.00016438,2]
[350645492,1738020639537,-500.0,0.00016438,2]
[350645493,1738020639547,-500.0,0.00016438,2]
[350645494,1738020639557,-500.0,0.00016438,2]
[350645495,1738020639566,-500.0,0.00016438,2]
[350645496,1738020639575,-500.3522786,0.00016438,2]
[350645497,1738020639584,-500.0,0.00016438,2]
[350645498,1738020639594,-500.0,0.00016438,2]
[350645499,1738020639603,-500.0,0.00016438,2]
[350645500,1738020639613,-500.0,0.00016438,2]
[350645501,1738020639622,-500.0,0.00016438,2]
[350645502,1738020639631,-500.40835491,0.00016438,2]
[350645503,1738020639641,-500.0,0.00016438,2]
[350645504,1738020639650,-500.0,0.00016438,2]
[350645505,1738020639659,-500.0,0.00016438,2]
[350645506,1738020639668,-500.0,0.00016438,2]
[350645507,1738020639678,-500.0,0.00016438,2]
[350645508,1738020639687,-500.0,0.00016438,2]
[350645509,1738020639696,-500.0,0.00016438,2]
[350645510,1738020639705,-331.1736146,0.00016438,2]
[350645511,1738020639714,-610.34195844,0.00016438,2]
[350645512,1738020639723,-500.0,0.00016438,2]
[350645513,1738020639733,-500.0,0.00016438,2]
[350645514,1738020639742,-500.0,0.00016438,2]
[350645515,1738020639751,-500.0,0.00016438,2]
[350645516,1738020639761,-500.0,0.00016438,2]
[350645517,1738020639770,-500.0,0.00016438,2]
[350645518,1738020639779,-297.98219356,0.00016438,2]
[350645519,1738020639788,-500.0,0.00016438,2]
[350645520,1738020639798,-500.0,0.00016438,2]
[350645521,1738020639807,-228.99449241,0.00016438,2]
[350645522,1738020639817,-500.0,0.00016438,2]
[350645523,1738020639826,-500.0,0.00016438,2]
[350645524,1738020639835,-500.0,0.00016438,2]
[350645525,1738020639845,-1822.47,0.00016438,2]
[350645526,1738020639855,-1822.47,0.00016438,2]
[350645527,1738020639864,-1822.47,0.00016438,2]
[350645528,1738020639873,-1822.47,0.00016438,2]
[350645529,1738020639882,-500.57512818,0.00016438,2]
[350645530,1738020639891,-500.0,0.00016438,2]
[350645531,1738020639901,-500.0,0.00016438,2]
[350645532,1738020639911,-500.0,0.00016438,2]
[350645533,1738020639920,-500.0,0.00016438,2]
[350645534,1738020639931,-500.0,0.00016438,2]
[350645535,1738020639940,-500.0,0.00016438,2]
[350645536,1738020639950,-500.0,0.00016438,2]
[350645537,1738020639959,-500.0,0.00016438,2]
[350645538,1738020639969,-500.0,0.00016438,2]
[350645539,1738020639985,-522.18,0.00016438,2]
[350645540,1738020639995,-500.0,0.00016438,2]
[350645541,1738020640004,-500.0,0.00016438,2]
[350645543,1738020640014,-500.0,0.00016438,2]
[350645544,1738020640023,-500.0,0.00016438,2]
[350645545,1738020640033,-500.0,0.00016438,2]
[350645546,1738020640044,-500.0,0.00016438,2]
[350645547,1738020640053,-158.18351559,0.00016472,2]
[350645548,1738020640063,-500.0,0.00016571,2]
[350645549,1738020640072,-500.0,0.00016571,2]
[350645550,1738020640081,-500.0,0.00016571,2]
[350645551,1738020640091,-500.0,0.00016571,2]
[350645552,1738020640101,-500.0,0.00016571,2]
[350645553,1738020640110,-500.0,0.00016571,2]
[350645554,1738020640119,-500.0,0.00016571,2]
[350645555,1738020640129,-500.0,0.00016571,2]
[350645556,1738020640138,-160.78997478,0.00016571,2]
[350645557,1738020640147,-281.0204732,0.00016571,2]
[350645558,1738020640157,-500.0,0.00016571,2]
[350645559,1738020640166,-500.0,0.00016571,2]
[350645560,1738020640176,-500.0,0.00016571,2]
[350645561,1738020640185,-500.0,0.00016571,2]
[350645562,1738020640195,-387.62197716,0.00016571,2]
[350645565,1738020640204,-500.0,0.00016571,2]
[350645568,1738020640213,-500.0,0.00016571,2]
[350645569,1738020640223,-500.0,0.00016571,2]
[350645570,1738020640232,-500.0,0.00016571,2]
[350645571,1738020640241,-500.0,0.00016571,2]
[350645572,1738020640250,-500.0,0.00016571,2]
[350645574,1738020640260,-500.0,0.00016571,2]
[350645576,1738020640270,-500.0,0.00016571,2]
[350645577,1738020640279,-500.0,0.00016571,2]
[350645578,1738020640292,-500.0,0.00016571,2]
[350645579,1738020640301,-500.0,0.00016571,2]
[350645580,1738020640311,-500.0,0.00016571,2]
[350645582,1738020640320,-500.0,0.00016571,2]
[350645583,1738020640330,-500.0,0.00016571,2]
[350645585,1738020640340,-500.0,0.00016571,2]
[350645586,1738020640350,-500.0,0.00016571,2]
[350645587,1738020640360,-500.0,0.00016571,2]
[350645588,1738020640371,-500.0,0.00016571,2]
[350645589,1738020640382,-500.0,0.00016571,2]
[350645590,1738020640391,-500.0,0.00016571,2]
[350645591,1738020640400,-173.0,0.00016571,2]
[350645592,1738020640410,-500.0,0.00016571,2]
[350645593,1738020640419,-500.0,0.00016571,2]
[350645594,1738020640429,-500.0,0.00016571,2]
[350645595,1738020640438,-500.0,0.00016571,2]
[350645596,1738020640448,-500.0,0.00016571,2]
[350645597,1738020640457,-500.0,0.00016571,2]
[350645598,1738020640467,-500.0,0.00016571,2]
[350645600,1738020640476,-500.0,0.00016571,2]
[350645602,1738020640486,-500.0,0.00016571,2]
[350645604,1738020640496,-500.0,0.00016571,2]
[350645605,1738020640505,-500.0,0.00016571,2]
[350645607,1738020640515,-500.0,0.00016571,2]
[350645609,1738020640524,-500.0,0.00016571,2]
[350645611,1738020640534,-210.10573862,0.00016571,2]
[350645613,1738020640544,-500.0,0.00016571,2]
[350645614,1738020640553,-500.0,0.00016571,2]
[350645617,1738020640562,-522.58257595,0.00016571,2]
[350645618,1738020640572,-500.0,0.00016571,2]
[350645620,1738020640581,-500.0,0.00016571,2]
[350645622,1738020640591,-500.0,0.00016571,2]
[350645624,1738020640600,-500.0,0.00016571,2]
[350645626,1738020640610,-500.0,0.00016571,2]
[350645628,1738020640619,-500.0,0.00016571,2]
[350645630,1738020640629,-500.0,0.00016571,2]
[350645632,1738020640638,-500.0,0.00016571,2]
[350645636,1738020640788,-500.0,0.00016571,2]
[350645637,1738020640801,-500.0,0.00016571,2]
[350645638,1738020640811,-500.0,0.00016571,2]
[350645639,1738020640821,-500.0,0.00016571,2]
[350645640,1738020640830,-500.0,0.00016571,2]
[350645641,1738020640840,-500.0,0.00016571,2]
[350645642,1738020640850,-500.0,0.00016571,2]
[350645643,1738020640860,-500.0,0.00016571,2]
[350645644,1738020640869,-500.0,0.00016571,2]
[350645645,1738020640879,-500.0,0.00016571,2]
[350645646,1738020640888,-500.0,0.00016571,2]
[350645647,1738020640898,-500.0,0.00016571,2]
[350645648,1738020640907,-500.0,0.00016571,2]
[350645649,1738020640917,-500.0,0.00016571,2]
[350645650,1738020640926,-500.0,0.00016571,2]
[350645651,1738020640936,-500.0,0.00016571,2]
[350645652,1738020640945,-500.0,0.00016571,2]
[350645653,1738020640955,-500.0,0.00016571,2]
[350645654,1738020640964,-500.0,0.00016571,2]
[350645655,1738020640974,-500.0,0.00016571,2]
[350645656,1738020640984,-500.0,0.00016571,2]
[350645657,1738020640994,-403.57441968,0.00016571,2]
[350645658,1738020641009,-96.42558032,0.00016571,2]
[350645659,1738020641018,-500.0,0.00016571,2]
[350645660,1738020641028,-513.97993228,0.00016573,2]
[350645661,1738020641040,-1308.49006772,0.00016573,2]
[350645662,1738020641050,-1822.47,0.00016573,2]
[350645663,1738020641060,-422.33712173,0.00016573,2]
[350645664,1738020641072,-1400.13287827,0.00016573,2]
[350645665,1738020641082,-500.0,0.00016575,2]
[350645666,1738020641091,-500.0,0.00016575,2]
[350645667,1738020641100,-621.61,0.00016575,2]
[350645668,1738020641110,-500.0,0.00016575,2]
[350645669,1738020641120,-500.0,0.00016575,2]
[350645670,1738020641129,-500.0,0.00016575,2]
[350645671,1738020641139,-500.0,0.00016575,2]
[350645672,1738020641148,-323.16,0.00016575,2]
[350645673,1738020641157,-500.0,0.00016575,2]
[350645674,1738020641166,-500.0,0.00016711,2]
[350645675,1738020641176,-500.0,0.00016711,2]
[350645676,1738020641185,-604.93,0.00016712,2]
[350645677,1738020641195,-500.0,0.00016712,2]
[350645678,1738020641204,-500.0,0.00016712,2]
[350645679,1738020641214,-500.0,0.00016712,2]
[350645680,1738020641224,-291.9,0.00016712,2]
[350645681,1738020641233,-500.0,0.00016712,2]
[350645682,1738020641243,-500.0,0.00016849,2]
[350645683,1738020641252,-638.81,0.00016849,2]
[350645684,1738020641262,-500.0,0.00016849,2]
[350645685,1738020641272,-419.70525396,0.00016986,2]
[350645686,1738020641282,-162.67,0.00016986,2]
[350645687,1738020641297,-158.18351556,0.00018529,2]
[350645688,1738020641306,-155.76,0.000186,2]
[350645689,1738020641316,-166.598,0.0001865,2]
[350645690,1738020641327,-153.0,0.00019429,2]
[350645691,1738020641337,-160.345554,0.00019956,2]
[350645692,1738020641346,-1822.47,0.00019984,2]
[350645693,1738020641356,-500.0,0.00019987,2]
[350645694,1738020641367,-500.0,0.00019987,2]
[350645695,1738020641376,-538.68195755,0.00019987,2]
[350645696,1738020641389,-1063.61729777,0.00019987,2]
[350645697,1738020641401,-220.17074468,0.00019987,2]
[350645698,1738020641410,-431.16544332,0.00019988,2]
[350645699,1738020641422,-24468.83455668,0.00019988,2]
[350645700,1738020641432,-500.0,0.00019999,2]
[350645701,1738020641441,-216.23517569,0.00019999,2]
[350645702,1738020641451,-201.48619996,0.00019999,2]
[350645703,1738020641460,-500.0,0.00019999,2]
[350645704,1738020641469,-500.0,0.00019999,2]
[350645705,1738020641478,-1822.47,0.00019999,2]
[350645706,1738020641488,-11316.64874001,0.0002,5]
[350645707,1738020641497,-3766.42644026,0.0002,5]
[350645708,1738020641506,-20776.16758901,0.0002,2]
[350645709,1738020641515,-140254.39333082,0.0002,2]
[350645733,1738020643990,-38738.064764,0.0002,2]
[350645734,1738020644000,-162.1301093,0.00020059,2]
[350645735,1738020644009,-385.617557,0.0002023,2]
[350645736,1738020644018,-12049.87519767,0.00020381,2]
[350645737,1738020644028,-6756.5322251,0.00020392,2]
[350645738,1738020644037,-1822.47,0.00020458,2]
[350645739,1738020644048,-499.0,0.00020547,2]
[350645740,1738020644058,-150.0,0.00020572,2]
[350645741,1738020644067,-158.18351556,0.00020585,2]
[350645742,1738020644077,-1822.47,0.00020625,2]
[350645743,1738020644086,-7523.46816595,0.0002081,2]
[350645744,1738020644098,-3951.18443894,0.0002081,2]
[350645746,1738020644358,-26.20136789,0.0002081,2]
[350645747,1738020644371,-485.43129925,0.0002081,2]
[350645782,1738020646570,-500.0,0.00016438,2]
[350645784,1738020646580,-63.58992564,0.0002081,2]
[350645786,1738020646590,-12049.87519767,0.00020883,2]
[350645788,1738020646599,-159.414847,0.00021156,2]
[350645790,1738020646609,-500.0,0.00021167,2]
[350645792,1738020646618,-500.0,0.00021167,2]
[350645794,1738020646628,-500.0,0.00021167,2]
[350645796,1738020646638,-500.0,0.00021167,2]
[350645798,1738020646648,-500.0,0.00021167,2]
[350645800,1738020646658,-500.0,0.00021167,2]
[350645803,1738020646667,-206.3507807,0.0002117,2]
[350645805,1738020646676,-1822.47,0.00021179,2]
[350645806,1738020646686,-3000.0,0.0002118,2]
[350645809,1738020646695,-3000.0,0.0002119,2]
[350645810,1738020646705,-3000.0,0.000212,2]
[350645813,1738020646714,-500.0,0.00021208,2]
[350645815,1738020646723,-500.0,0.00021208,2]
[350645817,1738020646732,-1822.47,0.00021208,2]
[350645819,1738020646743,-1822.47,0.00021208,2]
[350645821,1738020646752,-1822.47,0.00021208,2]
[350645823,1738020646762,-500.0,0.00021209,2]
[350645825,1738020646771,-500.0,0.00021209,2]
[350645827,1738020646780,-500.0,0.00021209,2]
[350645829,1738020646790,-500.0,0.00021209,2]
[350645831,1738020646799,-500.0,0.00021209,2]
[350645834,1738020646810,-500.0,0.00021209,2]
[350645836,1738020646818,-500.0,0.00021209,2]
[350645840,1738020646828,-500.0,0.00021209,2]
[350645843,1738020646838,-500.0,0.00021209,2]
[350645845,1738020646847,-500.0,0.00021209,2]
[350645847,1738020646857,-500.0,0.00021209,2]
[350645849,1738020646866,-500.0,0.00021209,2]
[350645851,1738020646875,-500.0,0.00021209,2]
[350645853,1738020646884,-500.0,0.00021209,2]
[350645855,1738020646894,-500.0,0.00021209,2]
[350645857,1738020646906,-645.2621034,0.00021209,2]
[350645859,1738020646916,-500.0,0.00021209,2]
[350645861,1738020646926,-500.0,0.00021209,2]
[350645863,1738020646936,-500.0,0.00021209,2]
[350645865,1738020646945,-500.0,0.00021209,2]
[350645867,1738020646955,-208.36563179,0.00021209,2]
[350645869,1738020646965,-500.0,0.00021209,2]
[350645870,1738020646976,-617.36501253,0.00021209,2]
[350645871,1738020646986,-500.0,0.00021209,2]
[350645872,1738020646996,-604.18615799,0.00021209,2]
[350645873,1738020647005,-500.0,0.00021209,2]
[350645874,1738020647015,-500.0,0.00021209,2]
[350645875,1738020647024,-500.0,0.00021209,2]